{"text_format":"1","workbook":"xlsx","n_sheets":1,"sheets":["tabella per nuova gara"],"not_rendered":{"charts":0,"images":0,"macros":0,"external_links":0,"defined_names":1,"comments":0,"pivot_tables":0},"unopened":[],"bounds":{"document_bytes":16777216,"sheet_cells":100000,"rows_first":2000,"rows_last":500,"rows_between":2000,"halvings":0,"cell_chars":16384,"cell_head_chars":4096},"cells_cut":0,"cells_raw":0,"read":"whole","date_system":"1900"}

{"sheet":"tabella per nuova gara","index":0,"n_rows":393,"n_cols":13,"rows_kept":393,"cut":false,"hidden":false,"merged":[]}
[]
["TABELLA SENZA PREZZI - PRODOTTI  GARA BIENNALE 2020/2022 "]
[]
["tipologia prodotto","formato","stampa COL/BN","stampa F/FR","tipologia carta","gr. carta","finitura","spec tecn","stima biennio a fogli/pezzi/facciata-e/ML","prezzo a foglio/pezzo/facciata-e/ML","prezzo totale","q.tà min. Sing. Ordine","soglie"]
["biglietto/tesserino","8,5x5,5 o 9x6","BN","FR","patinata lucida/opaca/usomano/usomano colorata",250,null,"allegate",400,null,{"$f":"(J5*I5)","v":0},null,500]
["biglietto/tesserino","8,5x5,5 o 9x6","BN","F","patinata lucida/opaca/usomano/usomano colorata",250,null,"allegate",400,null,{"$f":"(J6*I6)","v":0},null,500]
["biglietto/tesserino","8,5x5,5 o 9x6","COL","FR","patinata lucida/opaca/usomano/usomano colorata",250,null,"allegate",16000,null,{"$f":"(J7*I7)","v":0},null,500]
["biglietto/tesserino","8,5x5,5 o 9x6","COL","F","patinata lucida/opaca/usomano/ usomano colorata",250,null,"allegate",16000,null,{"$f":"(J8*I8)","v":0},null,500]
["biglietto/tesserino","8,5x5,5 o 9x6","COL","FR","patinata lucida/opaca/usomano/usomano colorata",300,null,"allegate",16000,null,{"$f":"(J9*I9)","v":0},null,500]
["biglietto/tesserino","7x10,5","COL","FR","patinata lucida/opacausomano/usomano colorata",250,null,"allegate",1000,null,{"$f":"(J10*I10)","v":0},null,500]
["biglietto/tesserino + busta ","7x10,5","COL","F","patinata lucida/opaca o usomano",300,null,"allegate",1000,null,{"$f":"(J11*I11)","v":0},null,500]
["blocco numerato carta chimica 10 pag x 2","8x12","COL","F","carta chimica colorata",null,null,"allegate",200,null,{"$f":"(J12*I12)","v":0},null,250]
["blocco numerato carta chimica 10 pag x 2","A4","COL","F","carta chimica colorata",null,null,"allegate",4200,null,{"$f":"(J13*I13)","v":0},null,250]
["blocco numerato carta chimica 10 pag x 2","A4","COL","FR","carta chimica colorata",null,null,"allegate",1000,null,{"$f":"(J14*I14)","v":0},null,250]
["blocco numerato carta chimica 20 pag x 2","A4","COL","FR","carta chimica colorata",null,null,"allegate",1000,null,{"$f":"(J15*I15)","v":0},null,250]
["blocco numerato carta chimica 10 pag x 3","A4","COL","F","carta chimica colorata",null,null,"allegate",1000,null,{"$f":"(J16*I16)","v":0},null,250]
["blocco numerato carta chimica 10 pag x 3","A4","COL","FR","carta chimica colorata",null,null,"allegate",1000,null,{"$f":"(J17*I17)","v":0},null,250]
["blocco numerato carta chimica 10 pag x 4","A4","COL","F","carta chimica colorata",null,null,"allegate",200,null,{"$f":"(J18*I18)","v":0},null,250]
["blocco numerato carta chimica 10 pag x 4","A4","COL","FR","carta chimica colorata",null,null,"allegate",200,null,{"$f":"(J19*I19)","v":0},null,250]
["blocco numerato carta chimica 50 pag x 2","14,5x11","BN","F","carta chimica colorata",null,null,"allegate",300,null,{"$f":"(J20*I20)","v":0},null,250]
["blocco numerato carta chimica 50 pag x 3","21x11"," BN","F","carta chimica colorata",null,null,"allegate",1000,null,{"$f":"(J21*I21)","v":0},null,250]
["blocco numerato carta chimica 50 pag x 3","A5","BN","F","carta chimica colorata",null,null,"allegate",400,null,{"$f":"(J22*I22)","v":0},null,250]
["Blocco libero (non rilegato) modulo carta chimica incollato a gruppi di 2 fogli x volta (bianco e giallo)","10,7x16,5","BN","F","carta chimica colorata",null,"incollati a 2 fogli","allegate",48000,null,{"$f":"(J23*I23)","v":0},null,250]
["blocco libero (non rilegato) numerato carta chimica incollato a gruppi di 3 x volta (bianco, rosa, giallo)","A4","BN","F","carta chimica colorata",null,"incollati a 3 fogli","allegate",1600,null,{"$f":"(J24*I24)","v":0},null,250]
["blocchetto numerato da 100 fogli","22,5x10,6","BN","F","Usomano/usomano colorata",65,"zigrinatura e gommatura","allegate",1600,null,{"$f":"(J25*I25)","v":0},null,250]
["planimetrie/eliografie – prezzo al metro lineare x altezze tutte uguali ","H 35 – 60 – 90 – 100 x ML","BN/COL","F","Usomano ",90,"da file a cartaceo varie misure","allegate",400,null,{"$f":"(J26*I26)","v":0},null,30]
["cartoncini per carte identità","13x24","BN","F","patinata lucida/opaca o usomano",160,"zigrinatura","allegate",24000,null,{"$f":"(J27*I27)","v":0},null,250]
["moduli per biblioteca e tipo bollettino multe","A5","BN","F","usomano ",80,"zigrinatura orizz/vert","allegate",4600,null,{"$f":"(J28*I28)","v":0},null,250]
["pergamena per diplomi/attestati","A4","COL","F","carta pergamena crema/avorio",180,null,"allegate",1600,null,{"$f":"(J29*I29)","v":0},null,2000]
["fogli per registri di stato civile",null,"BN","FR",null,93,null,"allegate",19200,null,{"$f":"(J30*I30)","v":0},null,0]
["fogli per registri di stato civile",null,"BN","FR",null,120,null,"allegate",19200,null,{"$f":"(J31*I31)","v":0},null,0]
["fogli carta filigranata con logo DIMMI","A4","COL","F","carta opale filigranata",80,null,"allegate",16000,null,{"$f":"(J32*I32)","v":0},null,10000]
["omaggio agli sposi carpetta logo argento + riproduzione stampe","28,5x28,5","COL","F",null,null,null,"allegate",700,null,{"$f":"(J33*I33)","v":0},null,500]
["shopper grandi","29x10x40","COL/argento","FR","carta colorata",null,"con manici di corda","allegate",160,null,{"$f":"(J34*I34)","v":0},100,200]
["shopper piccole","24x8x20","COL/argento","FR","carta colorata",null,"con manici di corda","allegate",160,null,{"$f":"(J35*I35)","v":0},100,200]
["timbri logo tondi in plastica ","diam 3,5",null,null,null,null,null,"allegate",20,null,{"$f":"(J36*I36)","v":0},5,20]
["timbri logo tondi in plastica ","diam 2,5",null,null,null,null,null,"allegate",20,null,{"$f":"(J37*I37)","v":0},5,20]
["Blocchi da 500 marche per diritti comunali con valore nominale ",null,null,null,null,null,null,"allegate",20,null,{"$f":"(J38*I38)","v":0},null,0]
["adesivi informativi per semafori resistenti intemperie e trattata su stampa",null,null,null,null,null,null,"allegate",120,null,{"$f":"(J39*I39)","v":0},null,0]
["etichette per inventario/censimento colore argento o rosse numerazione prog person. ","4,2x2,2","BN/ROSSO","F","poliestere autoadesivo permanente/fast tuff plastificato",null,null,"allegate",9400,null,{"$f":"(J40*I40)","v":0},null,0]
["sigilli adesivi fermo e sequestro amministrativo per auto","A4","ARGENTO/COL","F","antimanomissioni",null,null,"allegate",800,null,{"$f":"(J41*I41)","v":0},null,0]
["sigilli adesivi fermo e sequestro amministrativo per moto","A6","ARGENTP/COL","F","antimanomissioni",null,null,"allegate",1200,null,{"$f":"(J42*I42)","v":0},null,0]
["vetrofania per auto comunali","7,5x14","COL/BN","F","base bianca",null,null,"allegate",160,null,{"$f":"(J43*I43)","v":0},null,0]
["adesivo serv prioritario disabili (polizia locale)","20x20","COL","F","base colorata",null,"stondata nel fondo","allegate",200,null,{"$f":"(J44*I44)","v":0},null,0]
["adesivo rettangolare Taxi (polizia locale)","13x4","COL","F","base colorata",null,null,"allegate",160,null,{"$f":"(J45*I45)","v":0},null,0]
["adesivo colorato cm 6 (polizia locale)",6,"COL/BN","F",null,null,"Lettere/numeri col/bn","allegate",80,null,{"$f":"(J46*I46)","v":0},null,0]
["adesivo colorato cm 2,5 (polizia locale)",2.5,"COL/BN","F",null,null,"Lettere/numeri col/bn","allegate",160,null,{"$f":"(J47*I47)","v":0},null,0]
["adesivo tondo diam cm 7 (polizia locale)",7,"COL/BN","F",null,null,"blu verde o altri colori","allegate",160,null,{"$f":"(J48*I48)","v":0},null,0]
["Busta con strip + lettera personalizzata o non personalizzata + piegatura + imbustamento (welfare)","11x23","COL/BN","F/FR","usomano ",90,null,"allegate",400,null,{"$f":"(J49*I49)","v":0},null,1000]
["Busta con strip e finestra + lettera person o non person + piegatura + imbustamento (welfare)","11x23","COL/BN","F/FR","usomano ",90,null,"allegate",400,null,{"$f":"(J50*I50)","v":0},null,1000]
["Busta + crt verde notifiche - raccomandata cod C 9000 AG/C 9000 RAG con/senza person (messi PL entrate)","11x23","BN","F/FR","usomano colorata",90,"zigrinature e adesivo trasp","allegate",38000,null,{"$f":"(J51*I51)","v":0},null,1000]
["Busta verde con strip – notifiche - raccomandata AG o RAG con o senza personaliz (messi PL entrate)","11x23","BN","F/FR","usomano colorata",90,null,"allegate",800,null,{"$f":"(J52*I52)","v":0},null,1000]
["Busta verde con finestra con strip – notifiche - raccomandata AG o RAG (messi PL entrate)","11x23","BN","F/FR","usomano colorata",90,null,"allegate",800,null,{"$f":"(J53*I53)","v":0},null,1000]
["busta con colla","23x33","COL","F","usomano ",90,null,"allegate",800,null,{"$f":"(J54*I54)","v":0},null,1000]
["busta con colla","12x18","COL","F","usomano",90,null,"allegate",400,null,{"$f":"(J55*I55)","v":0},null,1000]
["busta a sacco con strip","16x23","COL","F o FR","tipo splendorgel",90,null,"allegate",6000,null,{"$f":"(J56*I56)","v":0},null,1000]
["busta con strip","11x23","BN","F o FR","usomano ",90,null,"allegate",400,null,{"$f":"(J57*I57)","v":0},null,1000]
["busta con strip","11x23 ","COL","F ","usomano ",90,null,"allegate",4000,null,{"$f":"(J58*I58)","v":0},null,1000]
["busta con strip","11x23","COL","FR","usomano ",90,null,"allegate",4000,null,{"$f":"(J59*I59)","v":0},null,1000]
["busta con strip ","23x33","BN","F ","usomano ",90,null,"allegate",46000,null,{"$f":"(J60*I60)","v":0},null,1000]
["busta con strip","23x33","COL","F","usomano ",90,null,"allegate",1600,null,{"$f":"(J61*I61)","v":0},null,1000]
["busta con strip e finestra","11x23 ","BN","F o FR","usomano ",90,null,"allegate",800,null,{"$f":"(J62*I62)","v":0},null,1000]
["busta con strip e finestra","11x23 ","COL","F ","usomano ",90,null,"allegate",400,null,{"$f":"(J63*I63)","v":0},null,1000]
["busta con strip e finestra","11x23","COL","FR","usomano ",90,null,"allegate",800,null,{"$f":"(J64*I64)","v":0},null,1000]
["busta verde per notifiche con strip","12x18","BN","F","usomano colorata",90,null,"allegate",24000,null,{"$f":"(J65*I65)","v":0},null,1000]
["busta verde per notifiche con strip ","23x33","COL","F","usomano colorata",90,null,"allegate",160,null,{"$f":"(J66*I66)","v":0},null,1000]
["manifesto","70x100","COL","F","Tipo whiteback",115,null,"allegate",14600,null,{"$f":"(J67*I67)","v":0},null,500]
["manifesto","70x100","COL","F","Tipo phoenixmotion/xenon",170,null,"allegate",800,null,{"$f":"(J68*I68)","v":0},null,500]
["manifesto","80x120","COL","F","Tipo whiteback",115,null,"allegate",160,null,{"$f":"(J69*I69)","v":0},null,500]
["manifesto ","100x140","COL","F","Tipo whiteback",115,null,"allegate",160,null,{"$f":"(J70*I70)","v":0},null,500]
["manifesto ","140x200","COL","F","Tipo whiteback",115,null,"allegate",1000,null,{"$f":"(J71*I71)","v":0},null,500]
["locandina","A4","COL","F","patinata lucida/opaca o usomano",115,null,"allegate",800,null,{"$f":"(J72*I72)","v":0},null,500]
["locandina","A4","COL","F","patinata lucida/opaca o usomano",160,null,"allegate",800,null,{"$f":"(J73*I73)","v":0},null,500]
["locandina","A4","COL","F","patinata lucida/opaca o usomano",200,null,"allegate",800,null,{"$f":"(J74*I74)","v":0},null,500]
["locandina","A4","COL","F","patinata lucida/opaca o usomano",250,null,"allegate",800,null,{"$f":"(J75*I75)","v":0},null,500]
["locandina","A4","COL","F","patinata lucida/opaca o usomano",300,null,"allegate",800,null,{"$f":"(J76*I76)","v":0},null,500]
["locandina","A3","BN","F","patinata lucida/opaca o usomano",115,null,"allegate",8000,null,{"$f":"(J77*I77)","v":0},null,500]
["locandina","A3","COL","F","patinata lucida/opaca o usomano",115,null,"allegate",8000,null,{"$f":"(J78*I78)","v":0},null,500]
["locandina","A3","COL","F","patinata lucida/opaca o usomano",160,null,"allegate",9200,null,{"$f":"(J79*I79)","v":0},null,500]
["locandina","A3","COL","F","patinata lucida/opaca o usomano",200,null,"allegate",1200,null,{"$f":"(J80*I80)","v":0},null,500]
["locandina","A3","COL","F","patinata lucida/opaca o usomano",250,null,"allegate",3200,null,{"$f":"(J81*I81)","v":0},null,500]
["locandina","A3","COL","F","patinata lucida/opaca o usomano",300,null,"allegate",500,null,{"$f":"(J82*I82)","v":0},null,500]
["locandina","21x40","COL","F","patinata lucida/opaca o usomano",200,null,"allegate",660,null,{"$f":"(J83*I83)","v":0},null,500]
["locandina","25x35","COL","F","patinata lucida/opaca o usomano",115,null,"allegate",100,null,{"$f":"(J84*I84)","v":0},null,500]
["locandina ","SRA3 32x45","BN","F","patinata lucida/opaca o usomano",200,null,"allegate",6000,null,{"$f":"(J85*I85)","v":0},null,500]
["locandina con stampa F e plastificazione FR ","SRA3 32x45","BN","F/FR","patinata lucida/opaca o usomano",200,null,"allegate",700,null,{"$f":"(J86*I86)","v":0},null,500]
["locandina","SRA3 32x45","COL","F","patinata lucida/opaca o usomano",115,null,"allegate",1600,null,{"$f":"(J87*I87)","v":0},null,500]
["locandina","SRA3 32x45","COL","F","patinata lucida/opaca o usomano",160,null,"allegate",500,null,{"$f":"(J88*I88)","v":0},null,500]
["locandina","SRA3 32x45","COL","F","patinata lucida/opaca o usomano",200,null,"allegate",500,null,{"$f":"(J89*I89)","v":0},null,500]
["locandina","SRA3 32x45","COL","F","patinata lucida/opaca o usomano",250,null,"allegate",500,null,{"$f":"(J90*I90)","v":0},null,500]
["locandina","SRA3 32x45","COL","F","patinata lucida/opaca o usomano",300,null,"allegate",500,null,{"$f":"(J91*I91)","v":0},null,500]
["locandina","35x50","COL","F","patinata lucida/opaca o usomano",115,null,"allegate",1000,null,{"$f":"(J92*I92)","v":0},null,500]
["locandina","35x50","COL","F","patinata lucida/opaca o usomano",160,null,"allegate",800,null,{"$f":"(J93*I93)","v":0},null,500]
["locandina","35x50","COL","F","patinata lucida/opaca o usomano",200,null,"allegate",600,null,{"$f":"(J94*I94)","v":0},null,500]
["locandina","35x50","COL","F","patinata lucida/opaca o usomano",250,null,"allegate",600,null,{"$f":"(J95*I95)","v":0},null,500]
["locandina","35x50","COL","F","patinata lucida/opaca o usomano",300,null,"allegate",800,null,{"$f":"(J96*I96)","v":0},null,500]
["locandina","A2 42x60","COL","F","patinata lucida/opaca o usomano",120,null,"allegate",400,null,{"$f":"(J97*I97)","v":0},null,500]
["locandina","50x70","COL","F","patinata lucida/opaca o usomano",115,null,"allegate",5400,null,{"$f":"(J98*I98)","v":0},null,500]
["stampa semplice (solo superiori a 100 copie)","A3","BN","F","usomano ",80,null,"allegate",32000,null,{"$f":"(J99*I99)","v":0},100,2000]
["stampa semplice (solo superiori a 100 copie)","A3","BN","FR","usomano ",80,null,"allegate",32000,null,{"$f":"(J100*I100)","v":0},100,2000]
["stampa semplice","A3","BN","F","usomano colorata",80,null,"allegate",800,null,{"$f":"(J101*I101)","v":0},null,2000]
["stampa semplice","A3","BN","FR","usomano colorata",80,null,"allegate",800,null,{"$f":"(J102*I102)","v":0},null,2000]
["stampa semplice (stampe elettorali)","A3","BN","F","usomano",200,null,"allegate",1600,null,{"$f":"(J103*I103)","v":0},null,2000]
["stampa semplice","A3","COL","F","patinata lucida/opaca o usomano",80,null,"allegate",17800,null,{"$f":"(J104*I104)","v":0},null,2000]
["stampa semplice","A3","COL","FR","patinata lucida/opaca o usomano",80,null,"allegate",46000,null,{"$f":"(J105*I105)","v":0},null,2000]
["stampa semplice","A3","COL","F","patinata lucida/opaca o usomano",160,null,"allegate",800,null,{"$f":"(J106*I106)","v":0},null,2000]
["stampa semplice","A3","COL","FR","patinata lucida/opaca o usomano",160,null,"allegate",800,null,{"$f":"(J107*I107)","v":0},null,2000]
["stampa semplice (solo superiori a 100 copie) ","A4","BN","F","usomano ",80,null,"allegate",16000,null,{"$f":"(J108*I108)","v":0},100,2000]
["stampa semplice (solo superiori a 100 copie)","A4","BN","FR","usomano ",80,null,"allegate",16000,null,{"$f":"(J109*I109)","v":0},100,2000]
["stampa semplice","A4","BN","F","usomano colorata",80,null,"allegate",1600,null,{"$f":"(J110*I110)","v":0},null,2000]
["stampa semplice","A4","BN","FR","usomano colorata",80,null,"allegate",1600,null,{"$f":"(J111*I111)","v":0},null,2000]
["stampa semplice","A4","BN","F","patinata lucida/opaca o usomano",160,null,"allegate",1600,null,{"$f":"(J112*I112)","v":0},null,2000]
["stampa semplice","A4","BN","FR","patinata lucida/opaca o usomano",160,null,"allegate",16000,null,{"$f":"(J113*I113)","v":0},null,2000]
["stampa semplice","A4","BN","F","usomano colorata",160,null,"allegate",1600,null,{"$f":"(J114*I114)","v":0},null,2000]
["stampa semplice","A4","BN","FR","usomano colorata",160,null,"allegate",1600,null,{"$f":"(J115*I115)","v":0},null,2000]
["stampa semplice (anche per carta intestata demografici)","A4","COL","F","patinata lucida/opaca o usomano",80,null,"allegate",192000,null,{"$f":"(J116*I116)","v":0},null,2000]
["stampa semplice","A4","COL","FR","patinata lucida/opaca o usomano",80,null,"allegate",80000,null,{"$f":"(J117*I117)","v":0},null,2000]
["stampa semplice","A4","COL","F","patinata lucida/opaca o usomano",90,null,"allegate",7000,null,{"$f":"(J118*I118)","v":0},null,2000]
["stampa semplice","A4","COL","FR","patinata lucida/opaca o usomano",90,null,"allegate",12000,null,{"$f":"(J119*I119)","v":0},null,2000]
["stampa semplice","A4","COL","F","patinata lucida/opaca o usomano",120,null,"allegate",3200,null,{"$f":"(J120*I120)","v":0},null,2000]
["stampa semplice","A4","COL","FR","patinata lucida/opaca o usomano",120,null,"allegate",4400,null,{"$f":"(J121*I121)","v":0},null,2000]
["stampa semplice","A4","COL","F","patinata lucida/opaca o usomano",160,null,"allegate",9400,null,{"$f":"(J122*I122)","v":0},null,2000]
["stampa semplice","A4","COL","FR","patinata lucida/opaca o usomano",160,null,"allegate",1200,null,{"$f":"(J123*I123)","v":0},null,2000]
["stampa semplice (taglio orizzontale o verticale)","A5","BN","F","patinata lucida/opaca o usomano",80,null,"allegate",72000,null,{"$f":"(J124*I124)","v":0},null,2000]
["stampa semplice (taglio orizzontale o verticale)","A5","BN","FR","patinata lucida/opaca o usomano",80,null,"allegate",4000,null,{"$f":"(J125*I125)","v":0},null,2000]
["stampa semplice","A5","BN","F","usomano colorata",80,null,"allegate",1600,null,{"$f":"(J126*I126)","v":0},null,2000]
["stampa semplice","A5","BN","FR","usomano colorata",80,null,"allegate",1600,null,{"$f":"(J127*I127)","v":0},null,2000]
["stampa semplice","A5","COL","F","patinata lucida/opaca o usomano",90,null,"allegate",70000,null,{"$f":"(J128*I128)","v":0},null,2000]
["stampa semplice","A5","COL","FR","patinata lucida/opaca o usomano",90,null,"allegate",4600,null,{"$f":"(J129*I129)","v":0},null,2000]
["stampa semplice ","10,5x9,9","BN","F","patinata lucida/opaca o usomano",80,null,"allegate",1400,null,{"$f":"(J130*I130)","v":0},null,2000]
["stampa semplice ","5,9x21","BN","F","patinata lucida/opaca o usomano",80,null,"allegate",1400,null,{"$f":"(J131*I131)","v":0},null,2000]
["stampa semplice ","9,9x42","BN","F","patinata lucida/opaca o usomano",160,null,"allegate",9000,null,{"$f":"(J132*I132)","v":0},null,2000]
["stampa semplice (moduli periodici Archiginnasio)","17,5x25","BN","F","usomano",160,null,"allegate",800,null,{"$f":"(J133*I133)","v":0},null,2000]
["cartolina verde per atti giudiziari con o senza personalizzazioni (messi PL entrate)","11x21,5","BN","FR","usomano colorata",200,"zigrinatura lat e adesivo trasp","allegate",1000,null,{"$f":"(J134*I134)","v":0},null,1000]
["cartolina","16,5x22,5","COL","FR","patinata lucida/opaca o usomano",280,null,"allegate",1000,null,{"$f":"(J135*I135)","v":0},null,1000]
["cartolina","12x18","BN","FR","patinata lucida/opaca o usomano",160,null,"allegate",200,null,{"$f":"(J136*I136)","v":0},null,1000]
["cartolina ","12x18","BN","FR","usomano colorata",160,null,"allegate",15600,null,{"$f":"(J137*I137)","v":0},null,1000]
["cartolina","12x18","COL","FR","patinata lucida/opaca o usomano",200,null,"allegate",14200,null,{"$f":"(J138*I138)","v":0},null,1000]
["cartolina","15,6x15,6","COL","FR","carta tipo splendorlux ",240,null,"allegate",200,null,{"$f":"(J139*I139)","v":0},null,1000]
["cartolina","A5","BN","F","patinata lucida/opaca o usomano",160,null,"allegate",3200,null,{"$f":"(J140*I140)","v":0},null,1000]
["cartolina","A5","BN","FR","patinata lucida/opaca o usomano",160,null,"allegate",8000,null,{"$f":"(J141*I141)","v":0},null,1000]
["cartolina","A5","BN","F","patinata lucida/opaca o usomano",200,null,"allegate",3200,null,{"$f":"(J142*I142)","v":0},null,1000]
["cartolina","A5","BN","FR","patinata lucida/opaca o usomano",200,null,"allegate",2000,null,{"$f":"(J143*I143)","v":0},null,1000]
["cartolina","A5","BN","F","patinata lucida/opaca o usomano",250,null,"allegate",2000,null,{"$f":"(J144*I144)","v":0},null,1000]
["cartolina","A5","BN","FR","patinata lucida/opaca o usomano",250,null,"allegate",4000,null,{"$f":"(J145*I145)","v":0},null,1000]
["cartolina","A5","COL","F","patinata lucida/opaca o usomano",160,null,"allegate",8000,null,{"$f":"(J146*I146)","v":0},null,1000]
["cartolina","A5","COL","FR","patinata lucida/opaca o usomano",160,null,"allegate",60000,null,{"$f":"(J147*I147)","v":0},null,1000]
["cartolina","A5","COL","F","patinata lucida/opaca o usomano",200,null,"allegate",400,null,{"$f":"(J148*I148)","v":0},null,1000]
["cartolina","A5","COL","FR","patinata lucida/opaca o usomano",200,null,"allegate",400,null,{"$f":"(J149*I149)","v":0},null,1000]
["cartolina","A5","COL","F","patinata lucida/opaca o usomano",250,null,"allegate",400,null,{"$f":"(J150*I150)","v":0},null,1000]
["cartolina","A5","COL","FR","patinata lucida/opaca o usomano",250,null,"allegate",400,null,{"$f":"(J151*I151)","v":0},null,1000]
["cartolina","A5","COL","F","patinata lucida/opaca o usomano",280,null,"allegate",4800,null,{"$f":"(J152*I152)","v":0},null,1000]
["cartolina","A5","COL","FR","patinata lucida/opaca o usomano",280,null,"allegate",55200,null,{"$f":"(J153*I153)","v":0},null,1000]
["cartolina","A5","COL","F","patinata lucida/opaca o usomano",300,null,"allegate",1600,null,{"$f":"(J154*I154)","v":0},null,1000]
["cartolina","A5","COL","FR","patinata lucida/opaca o usomano",300,null,"allegate",1600,null,{"$f":"(J155*I155)","v":0},null,1000]
["cartolina","A5","COL","F","patinata lucida/opaca o usomano",350,null,"allegate",1600,null,{"$f":"(J156*I156)","v":0},null,1000]
["cartolina","A5","COL","FR","patinata lucida/opaca o usomano",350,null,"allegate",1600,null,{"$f":"(J157*I157)","v":0},null,1000]
["cartolina (fascicolata in blocchi da più soggetti prezzo a cartolina)","A5","COL","FR","patinata lucida/opaca o usomano",160,null,"allegate",64000,null,{"$f":"(J158*I158)","v":0},null,1000]
["cartolina plastificata lucida un lato","A5","COL","FR","usomano",300,null,"allegate",4000,null,{"$f":"(J159*I159)","v":0},null,1000]
["cartolina","A6","BN","F","patinata lucida/opaca o usomano",160,null,"allegate",10000,null,{"$f":"(J160*I160)","v":0},null,1000]
["cartolina","A6","BN","FR","patinata lucida/opaca o usomano",160,null,"allegate",60000,null,{"$f":"(J161*I161)","v":0},null,1000]
["cartolina","A6","BN","F","usomano colorata",160,null,"allegate",16000,null,{"$f":"(J162*I162)","v":0},null,1000]
["cartolina","A6","BN","FR","usomano colorata",160,null,"allegate",16000,null,{"$f":"(J163*I163)","v":0},null,1000]
["cartolina","A6","BN","F","patinata lucida/opaca o usomano",200,null,"allegate",4000,null,{"$f":"(J164*I164)","v":0},null,1000]
["cartolina","A6","BN","FR","patinata lucida/opaca o usomano",200,null,"allegate",4000,null,{"$f":"(J165*I165)","v":0},null,1000]
["cartolina","A6","COL","F","patinata lucida/opaca o usomano",160,null,"allegate",8000,null,{"$f":"(J166*I166)","v":0},null,1000]
["cartolina","A6","COL","FR","patinata lucida/opaca o usomano",160,null,"allegate",8000,null,{"$f":"(J167*I167)","v":0},null,1000]
["cartolina","A6","COL","F","patinata lucida/opaca o usomano",200,null,"allegate",8000,null,{"$f":"(J168*I168)","v":0},null,1000]
["cartolina","A6","COL","FR","patinata lucida/opaca o usomano",200,null,"allegate",11000,null,{"$f":"(J169*I169)","v":0},null,1000]
["cartolina","A6","COL","F","patinata lucida/opaca o usomano",250,null,"allegate",2000,null,{"$f":"(J170*I170)","v":0},null,1000]
["cartolina","A6","COL","FR","patinata lucida/opaca o usomano",250,null,"allegate",16000,null,{"$f":"(J171*I171)","v":0},null,1000]
["cartolina","A6","COL","F","patinata lucida/opaca o usomano",280,null,"allegate",2000,null,{"$f":"(J172*I172)","v":0},null,1000]
["cartolina","A6","COL","FR","patinata lucida/opaca o usomano",280,null,"allegate",2000,null,{"$f":"(J173*I173)","v":0},null,1000]
["cartolina","A6","COL","F","patinata lucida/opaca o usomano",300,null,"allegate",2000,null,{"$f":"(J174*I174)","v":0},null,1000]
["cartolina","A6","COL","FR","patinata lucida/opaca o usomano",300,null,"allegate",4000,null,{"$f":"(J175*I175)","v":0},null,1000]
["cartolina plastificata lucida un lato","A6","COL","FR","usomano ",300,null,"allegate",7000,null,{"$f":"(J176*I176)","v":0},null,1000]
["cartolina","A6","COL","F","patinata lucida/opaca o usomano",350,null,"allegate",2000,null,{"$f":"(J177*I177)","v":0},null,1000]
["cartolina","A6","COL","FR","patinata lucida/opaca o usomano",350,null,"allegate",2000,null,{"$f":"(J178*I178)","v":0},null,1000]
["INVITI","10x20","BN","FR","patinata lucida/opaca o usomano",90,null,"allegate",2000,null,{"$f":"(J179*I179)","v":0},null,1000]
["INVITI","10x20","COL","FR","patinata lucida/opaca o usomano",250,null,"allegate",800,null,{"$f":"(J180*I180)","v":0},null,1000]
["INVITI","11x21","BN","F","usomano colorata",160,null,"allegate",800,null,{"$f":"(J181*I181)","v":0},null,1000]
["INVITI","9.9x21","BN","F","patinata lucida/opaca o usomano",80,null,"allegate",800,null,{"$f":"(J182*I182)","v":0},null,1000]
["INVITI","9.9x21","BN","FR","patinata lucida/opaca o usomano",80,null,"allegate",800,null,{"$f":"(J183*I183)","v":0},null,1000]
["INVITI","9.9x21","BN","F","patinata lucida/opaca o usomano",160,null,"allegate",800,null,{"$f":"(J184*I184)","v":0},null,1000]
["INVITI ","9.9x21","BN","FR","patinata lucida/opaca o usomano",160,null,"allegate",48000,null,{"$f":"(J185*I185)","v":0},null,1000]
["INVITI","9.9x21","BN","F","usomano colorata",160,null,"allegate",8000,null,{"$f":"(J186*I186)","v":0},null,1000]
["INVITI","9.9x21","BN","FR","usomano colorata",160,null,"allegate",16000,null,{"$f":"(J187*I187)","v":0},null,1000]
["INVITI","9.9x21","BN","F","patinata lucida/opaca o usomano",250,null,"allegate",800,null,{"$f":"(J188*I188)","v":0},null,1000]
["INVITI","9.9x21","COL","FR","patinata lucida/opaca o usomano",250,null,"allegate",96000,null,{"$f":"(J189*I189)","v":0},null,1000]
["INVITI","9.9x21","COL","F","patinata lucida/opaca o usomano",280,null,"allegate",800,null,{"$f":"(J190*I190)","v":0},null,1000]
["INVITI","9.9x21","COL","FR","patinata lucida/opaca o usomano",280,null,"allegate",800,null,{"$f":"(J191*I191)","v":0},null,1000]
["INVITI","9.9x21","COL","F","patinata lucida/opaca o usomano",320,null,"allegate",800,null,{"$f":"(J192*I192)","v":0},null,1000]
["INVITI","9.9x21","COL","FR","patinata lucida/opaca o usomano",320,null,"allegate",800,null,{"$f":"(J193*I193)","v":0},null,1000]
["INVITI","11x23","BN","F","patinata lucida/opaca o usomano",160,null,"allegate",800,null,{"$f":"(J194*I194)","v":0},null,1000]
["INVITI","11x23","BN","FR","patinata lucida/opaca o usomano",160,null,"allegate",400,null,{"$f":"(J195*I195)","v":0},null,1000]
["INVITI","11x23","BN","F","usomano colorata",160,null,"allegate",800,null,{"$f":"(J196*I196)","v":0},null,1000]
["INVITI","11x23","BN","FR","usomano colorata",160,null,"allegate",400,null,{"$f":"(J197*I197)","v":0},null,1000]
["INVITI","11x23","COL","F","patinata lucida/opaca o usomano",250,null,"allegate",800,null,{"$f":"(J198*I198)","v":0},null,1000]
["INVITI","11x23","COL","FR","patinata lucida/opaca o usomano",250,null,"allegate",800,null,{"$f":"(J199*I199)","v":0},null,1000]
["INVITI","11x23","COL","F","patinata lucida/opaca o usomano",280,null,"allegate",800,null,{"$f":"(J200*I200)","v":0},null,1000]
["INVITI","11x23","COL","FR","patinata lucida/opaca o usomano",280,null,"allegate",800,null,{"$f":"(J201*I201)","v":0},null,1000]
["INVITI","11x23","COL","F","patinata lucida/opaca o usomano",320,null,"allegate",800,null,{"$f":"(J202*I202)","v":0},null,1000]
["INVITI","11x23","COL","FR","patinata lucida/opaca o usomano",320,null,"allegate",800,null,{"$f":"(J203*I203)","v":0},null,1000]
["SEGNALIBRI","4x21","COL","F","tipo splendorlux",210,null,"allegate",1000,null,{"$f":"(J204*I204)","v":0},null,1000]
["SEGNALIBRI","4x21","COL","FR","tipo splendorlux",210,null,"allegate",400,null,{"$f":"(J205*I205)","v":0},null,1000]
["SEGNALIBRI","4x21","COL","FR","tipo splendorgel",270,null,"allegate",8000,null,{"$f":"(J206*I206)","v":0},null,1000]
["SEGNALIBRI","5,9x21","BN","F","patinata lucida/opaca o usomano",160,null,"allegate",800,null,{"$f":"(J207*I207)","v":0},null,1000]
["SEGNALIBRI","5,9x21","BN","FR","patinata lucida/opaca o usomano",160,null,"allegate",800,null,{"$f":"(J208*I208)","v":0},null,1000]
["SEGNALIBRI","5,9x21","BN","F","usomano colorata",160,null,"allegate",800,null,{"$f":"(J209*I209)","v":0},null,1000]
["SEGNALIBRI","5,9x21","BN","FR","usomano colorata",160,null,"allegate",800,null,{"$f":"(J210*I210)","v":0},null,1000]
["SEGNALIBRI","5,9x21","COL","F","patinata lucida/opaca o usomano",250,null,"allegate",800,null,{"$f":"(J211*I211)","v":0},null,1000]
["SEGNALIBRI","5,9x21","COL","FR","patinata lucida/opaca o usomano",250,null,"allegate",17000,null,{"$f":"(J212*I212)","v":0},null,1000]
["SEGNALIBRI","5,9x21","COL","F","patinata lucida/opaca o usomano",280,null,"allegate",800,null,{"$f":"(J213*I213)","v":0},null,1000]
["SEGNALIBRI","5,9x21","COL","FR","patinata lucida/opaca o usomano",280,null,"allegate",800,null,{"$f":"(J214*I214)","v":0},null,1000]
["SEGNALIBRI","5,9x21","COL","F","patinata lucida/opaca o usomano",320,null,"allegate",800,null,{"$f":"(J215*I215)","v":0},null,1000]
["SEGNALIBRI","5,9x21","COL","FR","patinata lucida/opaca o usomano",320,null,"allegate",800,null,{"$f":"(J216*I216)","v":0},null,1000]
["rilegatura due punti a sella",null,null,null,null,null,null,"allegate",800,null,{"$f":"(J217*I217)","v":0},null,500]
["Rilegatura 1 punto in alto a sinistra orizzontale o verticale",null,null,null,null,null,null,"allegate",800,null,{"$f":"(J218*I218)","v":0},null,500]
["rilagatura due punti laterali orizzontali o verticali",null,null,null,null,null,null,"allegate",800,null,{"$f":"(J219*I219)","v":0},null,500]
["rilegatura a spirale plastica cop dav in acetato o cartoncino 160 gr - fondo in cartoncino 160 gr ",null,null,null,null,null,null,"allegate",800,null,{"$f":"(J220*I220)","v":0},null,500]
["rilegatura a spirale metallo cop dav in acetato o cartoncino 160 gr – fondo in cartoncino 160 gr",null,null,null,null,null,null,"allegate",800,null,{"$f":"(J221*I221)","v":0},null,500]
["rilegatura a spirale in metallo + gangetto per appenderlo",null,null,null,null,null,null,"allegate",800,null,{"$f":"(J222*I222)","v":0},null,500]
["rilegatura a brossura",null,null,null,null,null,null,"allegate",800,null,{"$f":"(J223*I223)","v":0},null,500]
["copertina formato chiuso","A4","BN","F","usomano/usomano colorata",200,null,"allegate",400,null,{"$f":"(J224*I224)","v":0},null,500]
["copertina formato chiuso","A4","BN","FR","usomano/usomano colorata",200,null,"allegate",400,null,{"$f":"(J225*I225)","v":0},null,500]
["copertina formato chiuso","A5","BN","F","usomano/usomano colorata",200,null,"allegate",400,null,{"$f":"(J226*I226)","v":0},null,500]
["copertina formato chiuso","A5","BN","FR","usomano/usomano colorata",200,null,"allegate",400,null,{"$f":"(J227*I227)","v":0},null,500]
["copertina formato chiuso","A6","COL","F","patinata lucida/opaca/usomano/usomano colorata",200,null,"allegate",400,null,{"$f":"(J228*I228)","v":0},null,500]
["copertina formato chiuso","A6","COL","FR","patinata lucida/opaca o usomano",200,null,"allegate",400,null,{"$f":"(J229*I229)","v":0},null,500]
["copertina formato chiuso","15x15 o 16x16","COL","F","patinata lucida/opaca o usomano",200,null,"allegate",400,null,{"$f":"(J230*I230)","v":0},null,500]
["copertina formato chiuso","15x15 o 16x16","COL","FR","patinata lucida/opaca o usomano",200,null,"allegate",400,null,{"$f":"(J231*I231)","v":0},null,500]
["copertina formato chiuso","21x21","COL","F","patinata lucida/opaca o usomano",200,null,"allegate",400,null,{"$f":"(J232*I232)","v":0},null,500]
["copertina formato chiuso","21x21","COL","FR","patinata lucida/opaca o usomano",200,null,"allegate",400,null,{"$f":"(J233*I233)","v":0},null,500]
["copertina formato chiuso","20,5x27,5 o 17x24","COL","F","patinata lucida/opaca o usomano",200,null,"allegate",400,null,{"$f":"(J234*I234)","v":0},null,500]
["copertina formato chiuso","20,5x27,5 o 17x24","COL","FR","patinata lucida/opaca o usomano",200,null,"allegate",400,null,{"$f":"(J235*I235)","v":0},null,500]
["copertina formato chiuso","A5","COL","F","tipo woodstock o sirio color",140,null,"allegate",400,null,{"$f":"(J236*I236)","v":0},null,500]
["copertina formato chiuso","A4","COL","F","patinata lucida/opaca o usomano",300,null,"allegate",400,null,{"$f":"(J237*I237)","v":0},null,500]
["copertina formato chiuso","A4","COL","FR","patinata lucida/opaca o usomano",300,null,"allegate",400,null,{"$f":"(J238*I238)","v":0},null,500]
["copertina formato chiuso","A5","COL","F","patinata lucida/opaca o usomano",300,null,"allegate",400,null,{"$f":"(J239*I239)","v":0},null,500]
["copertina formato chiuso","A5","COL","FR","patinata lucida/opaca o usomano",300,null,"allegate",400,null,{"$f":"(J240*I240)","v":0},null,500]
["copertina formato chiuso","10x14","COL","FR","patinata lucida/opaca o usomano",160,null,"allegate",400,null,{"$f":"(J241*I241)","v":0},null,500]
["copertina formato chiuso","11x16","COL","F","patinata lucida/opaca o usomano",200,null,"allegate",400,null,{"$f":"(J242*I242)","v":0},null,500]
["interno formato chiuso","A6","COL","a facciata","patinata lucida/opaca o usomano",90,null,"allegate",32000,null,{"$f":"(J243*I243)","v":0},null,500]
["interno formato chiuso","A6","COL","a facciata","patinata lucida/opaca o usomano",110,null,"allegate",32000,null,{"$f":"(J244*I244)","v":0},null,500]
["interno formato chiuso","15x15 o 16x16","COL","a facciata","patinata lucida/opaca o usomano",90,null,"allegate",32000,null,{"$f":"(J245*I245)","v":0},null,500]
["interno formato chiuso","15x15 o 16x16","COL","a facciata","patinata lucida/opaca o usomano",110,null,"allegate",32000,null,{"$f":"(J246*I246)","v":0},null,500]
["interno formato chiuso","21x21","COL","a facciata","patinata lucida/opaca o usomano",110,null,"allegate",32000,null,{"$f":"(J247*I247)","v":0},null,500]
["interno formato chiuso","21x21","COL","a facciata","patinata lucida/opaca o usomano",160,null,"allegate",32000,null,{"$f":"(J248*I248)","v":0},null,500]
["interno formato chiuso","10x14","COL","a facciata","patinata lucida/opaca o usomano",100,null,"allegate",32000,null,{"$f":"(J249*I249)","v":0},null,500]
["interno formato chiuso","11x16","COL","a facciata","patinata lucida/opaca o usomano",100,null,"allegate",32000,null,{"$f":"(J250*I250)","v":0},null,500]
["interno formato chiuso","A4","BN","a facciata","usomano ",80,null,"allegate",32000,null,{"$f":"(J251*I251)","v":0},null,500]
["interno formato chiuso","A5","BN","a facciata","usomano ",80,null,"allegate",32000,null,{"$f":"(J252*I252)","v":0},null,500]
["interno formato chiuso","A4","COL","a facciata","patinata lucida/opaca o usomano",90,null,"allegate",32000,null,{"$f":"(J253*I253)","v":0},null,500]
["interno formato chiuso","20,5x27,5 o 17x24","COL","a facciata","patinata lucida/opaca o usomano",90,null,"allegate",32000,null,{"$f":"(J254*I254)","v":0},null,500]
["interno formato chiuso","A5","COL","a facciata","patinata lucida/opaca o usomano",90,null,"allegate",32000,null,{"$f":"(J255*I255)","v":0},null,500]
["interno formato chiuso","A4","COL","a facciata","patinata lucida/opaca o usomano",110,null,"allegate",32000,null,{"$f":"(J256*I256)","v":0},null,500]
["interno formato chiuso","20,5x27,5 o 17x24","COL","a facciata","patinata lucida/opaca o usomano",110,null,"allegate",32000,null,{"$f":"(J257*I257)","v":0},null,500]
["interno formato chiuso","A5","COL","a facciata","patinata lucida/opaca o usomano",110,null,"allegate",32000,null,{"$f":"(J258*I258)","v":0},null,500]
["interno formato chiuso","A4","COL","a facciata","patinata lucida/opaca o usomano",160,null,"allegate",32000,null,{"$f":"(J259*I259)","v":0},null,500]
["interno formato chiuso","A5","COL","a facciata","patinata lucida/opaca o usomano",160,null,"allegate",32000,null,{"$f":"(J260*I260)","v":0},null,500]
["tasca adesiva (a triangolo trasparente)",null,null,null,null,null,null,"allegate",1600,null,{"$f":"(J261*I261)","v":0},null,500]
["plastificazione lucida o opaca a facciata","A4/A3/carpette",null,"F/FR",null,null,null,"allegate",1600,null,{"$f":"(J262*I262)","v":0},null,500]
["carpette lista elettorale maschile e femminile – due fori lato sx – rosa/azzurro –f.to aperto 64x44 - f.to chiuso","32x44","BN","F","usomano colorata",250,null,"allegate",7000,null,{"$f":"(J263*I263)","v":0},null,500]
["Carpetta - aperto 32x22","Chiuso 16x22 ","COL","FR","patinata lucida/opaca o usomano",250,null,"allegate",1600,null,{"$f":"(J264*I264)","v":0},null,500]
["Carpetta - aperto A3","Chiuso A4","COL","FR","patinata lucida/opaca o usomano",200,null,"allegate",800,null,{"$f":"(J265*I265)","v":0},null,500]
["Carpetta - aperto A3","Chiuso A4","COL","FR","patinata lucida/opaca o usomano",250,null,"allegate",800,null,{"$f":"(J266*I266)","v":0},null,500]
["Carpetta - aperto A3","Chiuso A4","COL","FR","patinata lucida/opaca o usomano",300,null,"allegate",800,null,{"$f":"(J267*I267)","v":0},null,500]
["Carpetta - aperto A3","Chiuso A4","BN","FR","usomano ",200,null,"allegate",800,null,{"$f":"(J268*I268)","v":0},null,500]
["Carpetta - aperto A3","Chiuso A4","BN","FR","usomano ",250,null,"allegate",800,null,{"$f":"(J269*I269)","v":0},null,500]
["Carpetta - aperto A3","Chiuso A4","BN","FR","usomano ",300,null,"allegate",800,null,{"$f":"(J270*I270)","v":0},null,500]
["Carpetta - aperto A3","Chiuso A4","BN","FR","usomano colorata",300,null,"allegate",800,null,{"$f":"(J271*I271)","v":0},null,500]
["Carpetta – aperto SRA3 45x32","Chiuso 22,5x32","COL","FR","patinata lucida/opaca o usomano",250,null,"allegate",800,null,{"$f":"(J272*I272)","v":0},null,500]
["Carpetta – aperto SRA3 45x32","Chiuso 22,5x32","COL","FR","patinata lucida/opaca o usomano",300,null,"allegate",2400,null,{"$f":"(J273*I273)","v":0},null,500]
["Carpetta – aperto SRA3 45x32","Chiuso 22,5x32","BN","FR","usomano",200,null,"allegate",2400,null,{"$f":"(J274*I274)","v":0},null,500]
["Carpetta – aperto SRA3 45x32","Chiuso 22,5x32","BN","FR","usomano",250,null,"allegate",16000,null,{"$f":"(J275*I275)","v":0},null,500]
["Carpetta – aperto SRA3 45x32","Chiuso 22,5x32","BN","FR","usomano colorata",300,null,"allegate",2400,null,{"$f":"(J276*I276)","v":0},null,500]
["Carpetta – aperto 50x35","chiuso 25x35","COL","FR","patinata lucida/opaca o usomano",300,null,"allegate",800,null,{"$f":"(J277*I277)","v":0},null,500]
["Carpetta – aperto 50x35","chiuso 25x35","BN","FR","usomano",300,null,"allegate",800,null,{"$f":"(J278*I278)","v":0},null,500]
["Carpetta – aperto 50x35","chiuso 25x35","BN","FR","usomano colorata",300,null,"allegate",2000,null,{"$f":"(J279*I279)","v":0},null,500]
["Carpetta con alette – aperto 32x22 5mm dorso + alette lat 5 cm","Chiuso 16x22 ","COL","FR","usomano",250,null,"allegate",800,null,{"$f":"(J280*I280)","v":0},null,500]
["Carpetta con alette – SRA3 aperto 45x32","Chiuso 22,5x32","COL","FR","patinata lucida/opaca o usomano",250,null,"allegate",800,null,{"$f":"(J281*I281)","v":0},null,500]
["Carpetta con alette – SRA3 aperto 45x32","Chiuso 22,5x32","BN","FR","usomano",250,null,"allegate",800,null,{"$f":"(J282*I282)","v":0},null,500]
["Carpetta con alette – SRA3 aperto 45x32","Chiuso 22,5x32","BN","FR","usomano colorata",250,null,"allegate",800,null,{"$f":"(J283*I283)","v":0},null,500]
["Carpetta con alette – SRA3 aperto 45x32","Chiuso 22,5x32","COL","FR","usomano colorata",250,null,"allegate",800,null,{"$f":"(J284*I284)","v":0},null,500]
["carpetta con alette – aperto 50x35","chiuso 25x35","BN","FR","usomano",250,null,"allegate",3000,null,{"$f":"(J285*I285)","v":0},null,500]
["carpetta con alette – aperto 50x35","chiuso 25x35","BN","FR","usomano colorata",250,null,"allegate",3000,null,{"$f":"(J286*I286)","v":0},null,500]
["Carpetta – aperto 63x33 (25+25+ lembo dx 13 cm)","chiuso 25x33","BN","FR","usomano colorata",160,null,"allegate",800,null,{"$f":"(J287*I287)","v":0},null,500]
["Carpetta – aperto 66x34 (22+22+22 cm)","chiuso 22x34","BN","FR","usomano",250,null,"allegate",800,null,{"$f":"(J288*I288)","v":0},null,500]
["Pieghevole 2 ante – aperto 21x21","Chiuso 10,5x21","COL","FR","patinata lucida/opaca o usomano",90,null,"allegate",800,null,{"$f":"(J289*I289)","v":0},null,1000]
["Pieghevole 2 ante – aperto 21x21","Chiuso 10,5x21","COL","FR","patinata lucida/opaca o usomano",160,null,"allegate",28000,null,{"$f":"(J290*I290)","v":0},null,1000]
["Pieghevole 2 ante – aperto 21x21","Chiuso 10,5x21","COL","FR","patinata lucida/opaca o usomano",250,null,"allegate",800,null,{"$f":"(J291*I291)","v":0},null,1000]
["pieghevole 2 ante ","aperto 21x25","COL","FR","patinata lucida/opaca o usomano",90,null,"allegate",800,null,{"$f":"(J292*I292)","v":0},null,1000]
["pieghevole 2 ante ","aperto 21x25","COL","FR","patinata lucida/opaca o usomano",160,null,"allegate",800,null,{"$f":"(J293*I293)","v":0},null,1000]
["pieghevole 2 ante ","aperto 21x25","COL","FR","patinata lucida/opaca o usomano",250,null,"allegate",1000,null,{"$f":"(J294*I294)","v":0},null,1000]
["Pieghevole 2 ante – aperto 21x42","chiuso 21x21","COL","FR","patinata lucida/opaca o usomano",160,null,"allegate",800,null,{"$f":"(J295*I295)","v":0},null,1000]
["Pieghevole 2 ante – aperto 21x42","chiuso 21x21","COL","FR","patinata lucida/opaca o usomano",250,null,"allegate",800,null,{"$f":"(J296*I296)","v":0},null,1000]
["Pieghevole 2 ante – aperto 21x42","chiuso 21x21","COL","FR","patinata lucida/opaca o usomano",300,null,"allegate",800,null,{"$f":"(J297*I297)","v":0},null,1000]
["Pieghevole 2 ante – aperto 30x15 o 32x16","chiuso 15x15 o 16x16","COL","FR","patinata lucida/opaca o usomano",160,null,"allegate",800,null,{"$f":"(J298*I298)","v":0},null,1000]
["Pieghevole 2 ante – aperto 30x15 o 32x16","chiuso 15x15 o 16x16","COL","FR","patinata lucida/opaca o usomano",250,null,"allegate",800,null,{"$f":"(J299*I299)","v":0},null,1000]
["Pieghevole 2 ante – aperto 30x15 o 32x16","chiuso 15x15 o 16x16","COL","FR","patinata lucida/opaca o usomano",300,null,"allegate",800,null,{"$f":"(J300*I300)","v":0},null,1000]
["Pieghevole 2 ante – aperto A3","Chiuso A4","COL","FR","patinata lucida/opaca o usomano",90,null,"allegate",800,null,{"$f":"(J301*I301)","v":0},null,1000]
["Pieghevole 2 ante – aperto A3 cultura formato finito a croce A5","Chiuso A4","COL","FR","patinata lucida/opaca o usomano",120,null,"allegate",1600,null,{"$f":"(J302*I302)","v":0},null,1000]
["Pieghevole 2 ante – aperto A3","Chiuso A4","COL","FR","patinata lucida/opaca o usomano",160,null,"allegate",6000,null,{"$f":"(J303*I303)","v":0},null,1000]
["Pieghevole 2 ante – aperto A3","Chiuso A4","BN","FR","usomano",80,null,"allegate",800,null,{"$f":"(J304*I304)","v":0},null,1000]
["Pieghevole 2 ante – aperto A3","Chiuso A4","BN","FR","usomano",160,null,"allegate",800,null,{"$f":"(J305*I305)","v":0},null,1000]
["Pieghevole 2 ante – aperto A3","Chiuso A4","BN","FR","usomano colorata",80,null,"allegate",800,null,{"$f":"(J306*I306)","v":0},null,1000]
["Pieghevole 2 ante – aperto A3","Chiuso A4","BN","FR","usomano colorata",160,null,"allegate",800,null,{"$f":"(J307*I307)","v":0},null,1000]
["Pieghevole 2 ante – aperto A4","chiuso A5","COL","FR","patinata lucida/opaca o usomano",90,null,"allegate",1000,null,{"$f":"(J308*I308)","v":0},null,1000]
["Pieghevole 2 ante – aperto A4","chiuso A5","COL","FR","patinata lucida/opaca o usomano",115,null,"allegate",4600,null,{"$f":"(J309*I309)","v":0},null,1000]
["Pieghevole 2 ante – aperto A4","chiuso A5","COL","FR","patinata lucida/opaca o usomano",160,null,"allegate",7000,null,{"$f":"(J310*I310)","v":0},null,1000]
["Pieghevole 2 ante – aperto A4","chiuso A5","COL","FR","patinata lucida/opaca o usomano",200,null,"allegate",18000,null,{"$f":"(J311*I311)","v":0},null,1000]
["Pieghevole 2 ante – aperto A4","chiuso A5","COL","FR","patinata lucida/opaca o usomano",250,null,"allegate",800,null,{"$f":"(J312*I312)","v":0},null,1000]
["Pieghevole 2 ante – aperto A4","chiuso A5","COL","FR","patinata lucida/opaca o usomano",300,null,"allegate",800,null,{"$f":"(J313*I313)","v":0},null,1000]
["Pieghevole 2 ante – aperto A4","chiuso A5","COL","FR","tipo tintoretto",300,null,"allegate",800,null,{"$f":"(J314*I314)","v":0},null,1000]
["Pieghevole 2 ante – aperto A4","chiuso A5","BN","FR","usomano",80,null,"allegate",1600,null,{"$f":"(J315*I315)","v":0},null,1000]
["Pieghevole 2 ante – aperto A4","chiuso A5","BN","FR","usomano",160,null,"allegate",1600,null,{"$f":"(J316*I316)","v":0},null,1000]
["Pieghevole 2 ante – aperto A4","chiuso A5","BN","FR","usomano colorata",80,null,"allegate",1600,null,{"$f":"(J317*I317)","v":0},null,1000]
["Pieghevole 2 ante – aperto A4","chiuso A5","BN","FR","usomano colorata",160,null,"allegate",1600,null,{"$f":"(J318*I318)","v":0},null,1000]
["Pieghevole 2 ante – aperto A5","chiuso A6","BN","FR","patinata lucida/opaca o usomano",250,null,"allegate",800,null,{"$f":"(J319*I319)","v":0},null,1000]
["Pieghevole 2 ante – aperto A5","chiuso A6","COL","FR","patinata lucida/opaca o usomano",90,null,"allegate",16000,null,{"$f":"(J320*I320)","v":0},null,1000]
["Pieghevole 2 ante – aperto A5","chiuso A6","COL","FR","patinata lucida/opaca o usomano",115,null,"allegate",8000,null,{"$f":"(J321*I321)","v":0},null,1000]
["Pieghevole 2 ante – aperto A5","chiuso A6","COL","FR","patinata lucida/opaca o usomano",160,null,"allegate",800,null,{"$f":"(J322*I322)","v":0},null,1000]
["Pieghevole 2 ante – aperto A5","chiuso A6","BN","FR","usomano",80,null,"allegate",1000,null,{"$f":"(J323*I323)","v":0},null,1000]
["Pieghevole 2 ante – aperto A5","chiuso A6","BN","FR","usomano",160,null,"allegate",1000,null,{"$f":"(J324*I324)","v":0},null,1000]
["Pieghevole 2 ante – aperto A5","chiuso A6","BN","FR","usomano colorata",80,null,"allegate",800,null,{"$f":"(J325*I325)","v":0},null,1000]
["Pieghevole 2 ante – aperto A5","chiuso A6","BN","FR","usomano colorata",160,null,"allegate",800,null,{"$f":"(J326*I326)","v":0},null,1000]
["Pieghevole 2 ante – aperto A5","chiuso A6","COL","FR","patinata lucida/opaca o usomano",250,null,"allegate",2000,null,{"$f":"(J327*I327)","v":0},null,1000]
["Pieghevole 2 ante – aperto A5","chiuso A6","COL","FR","tipo tintoretto",300,null,"allegate",800,null,{"$f":"(J328*I328)","v":0},null,1000]
["Pieghevole 2 ante – aperto 15x21","chiuso 15x10,5","COL","FR","patinata lucida/opaca o usomano",115,null,"allegate",800,null,{"$f":"(J329*I329)","v":0},null,1000]
["Pieghevole 2 ante – aperto A6 – 15x10,5 tesserini PL","Chiuso 7,5x10,5","COL/BN","FR","patinata lucida/opaca/usomano/usomano colorata",160,null,"allegate",800,null,{"$f":"(J330*I330)","v":0},null,1000]
["Pieghevole 2 ante – aperto A5 – cordonato + fustella porta tesserino","chiuso A6","COL","FR","usomano",300,null,"allegate",6000,null,{"$f":"(J331*I331)","v":0},null,1000]
["Pieghevole 2 ante – aperto A6 – cordonato + fustella porta tesserino","Chiuso A7","COL","FR","usomano ",300,null,"allegate",6000,null,{"$f":"(J332*I332)","v":0},null,1000]
["Pieghevole 3 ante – 2 pieghe + 2 avvolte – aperto 32x68  – cellophan 250 copie","chiuso 16x23","COL","FR","tipo fedrigoni oikos",115,null,"allegate",16000,null,{"$f":"(J333*I333)","v":0},null,1000]
["Pieghevole 3 ante – 2 pieghe + 2 avvolte – aperto 32x68  – cellophan 250 copie","chiuso 16x23","COL","FR","patinata lucida/opaca o usomano",160,null,"allegate",16000,null,{"$f":"(J334*I334)","v":0},null,1000]
["Pieghevole 3 ante – 2 pieghe + 1 avvolte – aperto 40x60","chiuso 20x20","COL","FR","usomano",170,null,"allegate",30000,null,{"$f":"(J335*I335)","v":0},null,1000]
["Pieghevole 3 ante – aperto 21x40","Chiuso 13,3+13,3+13,3","COL","FR","patinata lucida/opaca o usomano",90,null,"allegate",6000,null,{"$f":"(J336*I336)","v":0},null,1000]
["Pieghevole 3 ante – aperto 21x40","Chiuso 13,3+13,3+13,3","COL","FR","patinata lucida/opaca o usomano",160,null,"allegate",6000,null,{"$f":"(J337*I337)","v":0},null,1000]
["Pieghevole 3 ante – aperto A3","chiuso 14x29,7","COL","FR","patinata lucida/opaca o usomano",90,null,"allegate",2000,null,{"$f":"(J338*I338)","v":0},null,1000]
["Pieghevole 3 ante – aperto A3","chiuso 14x29,7","COL","FR","patinata lucida/opaca o usomano",160,null,"allegate",2000,null,{"$f":"(J339*I339)","v":0},null,1000]
["Pieghevole 3 ante – aperto A3","chiuso 14x29,7","BN","FR","usomano",80,null,"allegate",2000,null,{"$f":"(J340*I340)","v":0},null,1000]
["Pieghevole 3 ante – aperto A3","chiuso 14x29,7","BN","FR","usomano",160,null,"allegate",1000,null,{"$f":"(J341*I341)","v":0},null,1000]
["Pieghevole 3 ante – aperto A3","chiuso 14x29,7","BN","FR","usomano colorata",80,null,"allegate",1000,null,{"$f":"(J342*I342)","v":0},null,1000]
["Pieghevole 3 ante – aperto A3","chiuso 14x29,7","BN","FR","usomano colorata",160,null,"allegate",1000,null,{"$f":"(J343*I343)","v":0},null,1000]
["Pieghevole 3 ante – aperto A4","Chiuso 9,9x21","COL","FR","patinata lucida/opaca o usomano",115,null,"allegate",90000,null,{"$f":"(J344*I344)","v":0},null,1000]
["Pieghevole 3 ante – aperto A4","Chiuso 9,9x21","COL","FR","patinata lucida/opaca o usomano",160,null,"allegate",100000,null,{"$f":"(J345*I345)","v":0},null,1000]
["Pieghevole 3 ante – aperto A4","Chiuso 9,9x21","COL","FR","patinata lucida/opaca o usomano",250,null,"allegate",2000,null,{"$f":"(J346*I346)","v":0},null,1000]
["Pieghevole 3 ante – aperto A4","Chiuso 9,9x21","COL","FR","patinata lucida/opaca o usomano",300,null,"allegate",2000,null,{"$f":"(J347*I347)","v":0},null,1000]
["Pieghevole 3 ante – aperto A4","Chiuso 9,9x21","COL","FR","tipo tintoretto",300,null,"allegate",2000,null,{"$f":"(J348*I348)","v":0},null,1000]
["Pieghevole 3 ante – aperto A4","Chiuso 9,9x21","BN","FR","usomano",80,null,"allegate",2000,null,{"$f":"(J349*I349)","v":0},null,1000]
["Pieghevole 3 ante – aperto A4","Chiuso 9,9x21","BN","FR","usomano",160,null,"allegate",2000,null,{"$f":"(J350*I350)","v":0},null,1000]
["Pieghevole 3 ante – aperto A4","Chiuso 9,9x21","BN","FR","usomano colorata",80,null,"allegate",2000,null,{"$f":"(J351*I351)","v":0},null,1000]
["Pieghevole 3 ante – aperto A4","Chiuso 9,9x21","COL","FR","patinata lucida/opaca o usomano",90,null,"allegate",4000,null,{"$f":"(J352*I352)","v":0},null,1000]
["Pieghevole 3 ante – aperto A4","Chiuso 9,9x21","BN","FR","usomano colorata",160,null,"allegate",1400,null,{"$f":"(J353*I353)","v":0},null,1000]
["Pieghevole 3 ante – aperto A4","Chiuso 9,9x21","COL","FR","usomano colorata",90,null,"allegate",1000,null,{"$f":"(J354*I354)","v":0},null,1000]
["Pieghevole 3 ante – aperto 29,7x10,5 (A5 taglio verticale)","Chiuso 9,90x29,7","BN","FR","usomano colorata",160,null,"allegate",1000,null,{"$f":"(J355*I355)","v":0},null,1000]
["Pieghevole 3 ante – aperto A5","chiuso 7x21","COL","FR","patinata lucida/opaca/usomano/usomano colorata",160,null,"allegate",1000,null,{"$f":"(J356*I356)","v":0},null,1000]
["Pieghevole 3 ante – aperto A5","chiuso 7x21","COL","FR","patinata lucida/opaca o usomano",90,null,"allegate",1000,null,{"$f":"(J357*I357)","v":0},null,1000]
["pieghevole 4 ante ","Aperto 39,6x14","COL","FR","patinata lucida/opaca o usomano",115,null,"allegate",3000,null,{"$f":"(J358*I358)","v":0},null,1000]
["pieghevole 4 ante ","aperto 42x15","COL","FR","patinata lucida/opaca o usomano",115,null,"allegate",2000,null,{"$f":"(J359*I359)","v":0},null,1000]
["pieghevole 4 ante ","Aperto 32x68","COL","FR","patinata lucida/opaca o usomano",115,null,"allegate",2000,null,{"$f":"(J360*I360)","v":0},null,1000]
["pieghevole 4 ante ","aperto 21x40","COL","FR","patinata lucida/opaca o usomano",160,null,"allegate",120000,null,{"$f":"(J361*I361)","v":0},null,1000]
["pieghevole 4 ante ","aperto A4","COL","FR","patinata lucida/opaca o usomano",90,null,"allegate",5000,null,{"$f":"(J362*I362)","v":0},null,1000]
["pieghevole 4 ante – aperto A3","Chiuso 10,5x14,8","COL","FR","patinata lucida/opaca o usomano",115,null,"allegate",5000,null,{"$f":"(J363*I363)","v":0},null,1000]
["pieghevole 4 ante ","aperto A3","COL","FR","patinata lucida/opaca o usomano",90,null,"allegate",10000,null,{"$f":"(J364*I364)","v":0},null,1000]
["pieghevole 4 ante ","aperto A3","COL","FR","patinata lucida/opaca o usomano",115,null,"allegate",10000,null,{"$f":"(J365*I365)","v":0},null,1000]
["pieghevole 4 ante ","aperto A3","COL","FR","patinata lucida/opaca o usomano",160,null,"allegate",14000,null,{"$f":"(J366*I366)","v":0},null,1000]
["pieghevole 4 ante ","aperto A3","COL","FR","usomano colorata",160,null,"allegate",200,null,{"$f":"(J367*I367)","v":0},null,1000]
["pieghevole 4 ante ","Aperto 17,5x50","COL","FR","patinata lucida/opaca o usomano",115,null,"allegate",5000,null,{"$f":"(J368*I368)","v":0},null,1000]
["pieghevole 4 ante – 3 pieghe a fisarmonica con angoli arrotondati, plastificazione opaca, aperto 85x54","chiuso34x54","COL","FR","patinata lucida/opaca o usomano",200,null,"allegate",1000,null,{"$f":"(J369*I369)","v":0},null,1000]
["Pieghevole 5 ante ","aperto A4","COL","FR","patinata lucida/opaca o usomano",115,null,"allegate",3000,null,{"$f":"(J370*I370)","v":0},null,1000]
["Pieghevole 5 ante ","aperto 48x69","COL","FR","patinata lucida/opaca o usomano",115,null,"allegate",1000,null,{"$f":"(J371*I371)","v":0},null,1000]
["Pieghevole 6 ante ","aperto 60x60","COL","FR","patinata lucida/opaca o usomano",115,null,"allegate",1400,null,{"$f":"(J372*I372)","v":0},null,1000]
["Pieghevole 6 ante ","aperto 40x40","COL","FR","patinata lucida/opaca o usomano",115,null,"allegate",1000,null,{"$f":"(J373*I373)","v":0},null,1000]
["Pieghevole 7 ante ","aperto 21x70","COL","FR","patinata lucida/opaca o usomano",115,null,"allegate",1000,null,{"$f":"(J374*I374)","v":0},null,1000]
["Pieghevole 8 ante – piega ottavo in croce – aperto 42x60 ","chiuso 15x21","COL","FR","usomano",100,null,"allegate",86000,null,{"$f":"(J375*I375)","v":0},null,1000]
["Pieghevole 8 ante ","aperto 20x80","COL","FR","patinata lucida/opaca o usomano",120,null,"allegate",2000,null,{"$f":"(J376*I376)","v":0},null,1000]
["Pieghevole 8 ante ","aperto 20x80","COL","FR","patinata lucida/opaca/usomano/usomano colorata",120,null,"allegate",60000,null,{"$f":"(J377*I377)","v":0},null,1000]
["Pieghevole 8 ante ","aperto 20x80","BN","FR","patinata lucida/opaca/usomano/usomano colorata",120,null,"allegate",2000,null,{"$f":"(J378*I378)","v":0},null,1000]
[null,null,null,null,null,null,null,null,null,"VALORE COMPLESSIVO OFFERTO",{"$f":"(ROUND(SUM(K5:K378),2))","v":0}]
["importo totale fornitura indicativa (netto)",{"$f":"(K379)","v":0},null,null,null,null,null,null,{"$f":"K379","v":0}]
["Sconto percentuale rispetto alla base di gara",{"$f":"(340000-B380)*100/340000","v":100},null,null,null,null,null,null,{"$f":"(340000-I380)*100/340000","v":100}]
["Ulteriore sconto (espresso in %) per singoli  ordini che superino la quantità soglia "]
[]
["aliquota IVA applicabile"]
[]
[]
[]
["Data ________________________"]
["____________________________"]
["(timbro e firma )"]
[]
["N.B. in caso di costituenda ATI/consorzio ordinario l’offerta dovrà essere sottoscritta dai Legali Rappresentanti di tutti i soggetti partecipanti al costituendo consorzio/raggruppamento e dovrà altresì contenere "]
["l'indicazione delle parti che saranno eseguite dai singoli concorrenti riuniti"]